bitfinex/quotes_SOLUSD_20250316
["timestamp","ask_amount","ask_price","bid_price","bid_amount"]
[1742156502355,18.64964886,127.49,127.46,0.03]
[1742156502855,18.64964886,127.49,127.47,16.84125658]
[1742156505834,24.92374886,127.51,127.48,16.84125658]
[1742156506040,24.92374886,127.51,127.49,16.84125658]
[1742156506354,24.92374886,127.51,127.48,16.84125658]
[1742156507035,18.64964886,127.5,127.47,16.84125658]
[1742156507236,35.49090544,127.5,127.47,0.03]
[1742156507555,18.71264886,127.5,127.47,0.03]
[1742156507753,6.275,127.49,127.47,0.03]
[1742156511048,25.94964886,127.48,127.47,0.03]
[1742156512050,32.22504886,127.48,127.47,0.03]
[1742156512645,7.3,127.48,127.47,16.87125658]
[1742156515549,0.063,127.5,127.47,16.87125658]
[1742156515751,0.063,127.5,127.49,16.84125658]
[1742156518464,0.063,127.5,127.48,16.84125658]
[1742156519666,18.71264886,127.5,127.48,16.84125658]
[1742156520065,18.71264886,127.5,127.47,16.87125658]
[1742156520661,18.71264886,127.5,127.47,0.03]
[1742156521469,35.55390544,127.5,127.47,0.03]
[1742156521663,18.64964886,127.48,127.47,0.03]
[1742156523869,18.64964886,127.48,127.46,0.03]
[1742156523870,42.05062858,127.48,127.46,0.03]
[1742156525969,35.77522858,127.47,127.46,0.03]
[1742156526173,35.77522858,127.47,127.46,0.0001]
[1742156527274,42.05112858,127.47,127.46,0.0001]
[1742156527768,24.92554886,127.47,127.46,0.0001]
[1742156528572,47.3756,127.48,127.46,0.0001]
[1742156528760,67.04964886,127.48,127.47,16.84125658]
[1742156529073,67.04964886,127.48,127.46,0.0001]
[1742156529074,67.04964886,127.48,127.46,16.84135658]
[1742156529478,73.32504886,127.48,127.46,16.84135658]
[1742156530373,32.22504886,127.48,127.46,16.84135658]
[1742156531658,6.3375,127.5,127.47,16.84125658]
[1742156531859,6.3375,127.5,127.49,16.84125658]
[1742156532271,6.3375,127.5,127.48,16.84125658]
[1742156534389,6.3375,127.5,127.47,16.84125658]
[1742156534594,18.64964886,127.49,127.46,0.0001]
[1742156536084,6.2754,127.48,127.46,16.84135658]
[1742156536270,15.7492,127.5,127.46,16.84135658]
[1742156536271,0.063,127.5,127.47,16.84125658]
[1742156536475,32.28724886,127.5,127.48,16.84125658]
[1742156539372,32.28724886,127.5,127.47,16.84125658]
[1742156541295,47.97344886,127.5,127.46,16.84135658]
[1742156541974,47.97344886,127.5,127.47,16.84125658]
[1742156541975,32.28724886,127.5,127.47,16.84125658]
[1742156543090,32.28724886,127.5,127.47,10.77475523]
[1742156543691,32.28724886,127.5,127.46,10.77485523]
[1742156543882,58.74820409,127.5,127.46,0.0001]
[1742156544782,18.64964886,127.48,127.46,0.0001]
[1742156544984,6.2759,127.47,127.46,0.0001]
[1742156545378,24.92554886,127.47,127.46,0.0001]
[1742156545791,6.2759,127.47,127.46,16.84425402]
[1742156546293,6.2754,127.48,127.46,16.84425402]
[1742156546491,23.33352314,127.5,127.46,16.84425402]
[1742156546492,7.363,127.5,127.47,16.84415402]
[1742156546687,6.3377,127.5,127.49,16.84415402]
[1742156547096,0.063,127.5,127.49,16.84415402]
[1742156547294,0.063,127.5,127.48,16.84415402]
[1742156547986,0.063,127.5,127.49,16.84415402]
[1742156549574,0.063,127.5,127.49,23.11915402]
[1742156549778,0.063,127.5,127.49,39.96330804]
[1742156550099,0.063,127.5,127.49,23.11915402]
[1742156550292,0.063,127.5,127.49,16.84415402]
[1742156557694,0.063,127.5,127.46,0.0001]
[1742156557888,0.063,127.5,127.48,16.84415402]
[1742156558088,0.063,127.5,127.49,16.84415402]
[1742156565449,18.71264886,127.5,127.48,16.84415402]
[1742156566133,6.275,127.49,127.48,16.84415402]
[1742156567158,6.275,127.49,127.48,10.77395612]
[1742156568262,6.275,127.49,127.47,10.77395612]
[1742156570451,18.64964886,127.48,127.46,10.77405612]
[1742156570977,18.64964886,127.48,127.47,10.77395612]
[1742156571472,6.275,127.49,127.47,10.77395612]
[1742156571657,13.6176,127.5,127.48,10.77395612]
[1742156575368,13.6176,127.5,127.47,10.77395612]
[1742156575576,18.64964886,127.49,127.47,10.77395612]
[1742156577777,24.92484886,127.49,127.47,10.77395612]
[1742156578880,24.92484886,127.49,127.48,10.77395612]
[1742156582080,24.92484886,127.49,127.47,10.77395612]
[1742156584183,24.92484886,127.49,127.48,10.77395612]
[1742156585888,24.92484886,127.49,127.47,10.77395612]
[1742156588985,24.92484886,127.49,127.46,0.0001]
[1742156589487,24.92484886,127.49,127.46,10.77405612]
[1742156589688,24.92484886,127.49,127.47,10.77395612]
[1742156589877,24.98784886,127.49,127.47,10.77395612]
[1742156590072,24.98784886,127.49,127.46,10.77405612]
[1742156592391,24.98784886,127.49,127.47,10.77395612]
[1742156598872,38.64964886,127.47,127.46,0.0001]
[1742156599088,49.70792812,127.47,127.46,0.0001]
[1742156600980,55.98382812,127.47,127.46,0.0001]
[1742156601598,97.08382812,127.47,127.46,0.0001]
[1742156602098,120.69382812,127.47,127.46,0.0001]
[1742156603684,79.59382812,127.47,127.46,0.0001]
[1742156605397,20.28432314,127.42,127.41,0.0001]
[1742156605579,56.98792812,127.42,127.41,0.0001]
[1742156606083,63.26632812,127.42,127.41,0.0001]
[1742156606291,52.492372,127.42,127.41,0.0001]
[1742156611200,63.26632812,127.42,127.41,0.0001]
[1742156611585,52.492372,127.42,127.41,0.0001]
[1742156613105,24.92804886,127.42,127.41,0.0001]
[1742156613403,24.92804886,127.42,127.41,10.77405612]
[1742156613999,24.92804886,127.42,127.41,0.0001]
[1742156615293,24.92804886,127.42,127.41,10.77405612]
[1742156616307,24.92804886,127.42,127.41,0.0001]
[1742156617682,25.07021043,127.42,127.41,0.0001]
[1742156617883,25.212372,127.42,127.41,0.0001]
[1742156618903,25.213372,127.4,127.39,0.063]
[1742156619407,18.64964886,127.4,127.39,0.063]
[1742156620382,24.92904886,127.4,127.39,0.063]
[1742156623113,25.07121043,127.4,127.39,0.063]
[1742156623310,35.84516655,127.4,127.39,0.063]
[1742156623493,18.79181043,127.39,127.38,0.03]
[1742156623893,25.07171043,127.39,127.38,0.03]
[1742156626894,25.213872,127.39,127.38,0.03]
[1742156627497,35.98782812,127.39,127.38,0.0001]
[1742156627818,77.08782812,127.39,127.38,0.0001]
[1742156628614,66.17171043,127.39,127.38,0.0001]
[1742156631135,25.213872,127.39,127.38,0.0001]
[1742156635439,35.98782812,127.39,127.38,0.0001]
[1742156635643,25.213872,127.39,127.38,0.0001]
[1742156636947,66.313872,127.39,127.38,0.0001]
[1742156637234,77.08782812,127.39,127.38,0.0001]
[1742156638233,66.313872,127.39,127.38,0.0001]
[1742156639211,66.376872,127.39,127.38,0.0001]
[1742156642636,24.99254886,127.39,127.38,10.77405612]
[1742156642811,32.25254886,127.39,127.38,10.77405612]
[1742156643010,32.25254886,127.39,127.38,0.0001]
[1742156643719,24.99254886,127.39,127.38,10.77405612]
[1742156643932,32.25254886,127.39,127.38,10.77405612]
[1742156644132,32.25254886,127.39,127.38,0.0001]
[1742156650542,32.39471043,127.39,127.38,0.0001]
[1742156661170,32.39471043,127.39,127.38,0.0001]
[1742156662158,32.25254886,127.39,127.38,0.0001]
[1742156665742,18.64964886,127.38,127.37,10.37405612]
[1742156666552,24.93004886,127.38,127.37,10.37405612]
[1742156667741,32.19004886,127.38,127.36,10.80395612]
[1742156670479,32.19004886,127.38,127.36,0.03]
[1742156674655,32.25304886,127.38,127.36,0.03]
[1742156677977,25.97264886,127.38,127.37,10.77395612]
[1742156678459,0.063,127.38,127.37,10.77395612]
[1742156684665,0.063,127.38,127.37,10.47395612]
[1742156685265,0.063,127.38,127.37,16.75485612]
[1742156687570,0.063,127.38,127.37,10.47395612]
[1742156692856,56.7949,127.43,127.37,10.47395612]
[1742156692857,36.66387938,127.45,127.38,8.2334]
[1742156693053,6.2775,127.44,127.43,10.77395612]
[1742156693258,24.92714886,127.44,127.43,10.77395612]
[1742156693562,32.16714886,127.44,127.42,10.77395612]
[1742156699282,18.64964886,127.43,127.41,10.77395612]
[1742156699965,13.5805,127.44,127.41,10.77395612]
[1742156702490,18.79181043,127.43,127.38,1.6142]
[1742156702695,29.56576655,127.43,127.38,12.38815612]
[1742156702879,18.64964886,127.41,127.4,10.77395612]
[1742156703070,6.2784,127.42,127.4,10.77395612]
[1742156707084,6.2784,127.42,127.39,10.77395612]
[1742156707488,18.64964886,127.41,127.39,10.77395612]
[1742156708106,6.2792,127.41,127.39,10.77395612]
[1742156708479,6.2792,127.41,127.38,12.38815612]
[1742156708882,6.2792,127.41,127.38,10.77395612]
[1742156709099,18.64964886,127.4,127.37,10.80395612]
[1742156709278,18.64964886,127.4,127.38,10.77395612]
[1742156710200,24.92924886,127.4,127.38,10.77395612]
[1742156711072,24.92924886,127.4,127.39,0.03]
[1742156716283,6.2796,127.4,127.39,0.03]
[1742156718413,6.2784,127.42,127.39,0.03]
[1742156718791,18.64964886,127.41,127.39,0.03]
[1742156720907,24.92904886,127.4,127.39,0.03]
[1742156728906,6.2779,127.43,127.39,10.80395612]
[1742156729084,18.64964886,127.42,127.39,10.80395612]
[1742156731105,6.2788,127.42,127.4,10.77395612]
[1742156731910,6.2788,127.42,127.39,10.80395612]
[1742156733407,13.5188,127.42,127.39,10.80395612]
[1742156733616,0.28432314,127.4,127.39,0.03]
[1742156733785,29.70792812,127.4,127.39,0.03]
[1742156734411,35.98732812,127.4,127.39,0.03]
[1742156734620,35.98732812,127.4,127.39,0.0001]
[1742156750624,43.22732812,127.4,127.39,0.0001]
[1742156751631,43.29032812,127.4,127.39,0.0001]
[1742156759927,0.28432314,127.38,127.36,0.03]
[1742156760134,10.77395612,127.37,127.36,0.03]
[1742156760330,29.70792812,127.37,127.36,0.03]
[1742156760935,35.98882812,127.37,127.36,0.03]
[1742156762120,25.214872,127.37,127.36,0.03]
[1742156763722,18.64964886,127.37,127.36,0.03]
[1742156764037,24.93054886,127.37,127.36,0.03]
[1742156765344,35.98882812,127.37,127.35,0.03]
[1742156765562,35.98982812,127.35,127.34,0.03]
[1742156765718,43.20982812,127.35,127.34,0.03]
[1742156765921,25.86964886,127.35,127.34,0.03]
[1742156766131,32.15154886,127.35,127.34,0.03]
[1742156766527,25.86964886,127.35,127.34,0.03]
[1742156766724,32.15154886,127.35,127.34,0.03]
[1742156768536,43.20982812,127.35,127.34,0.03]
[1742156771444,43.20982812,127.35,127.34,0.03]
[1742156773842,0.28432314,127.29,127.25,1.5836]
[1742156774151,7.22,127.28,127.25,1.5836]
[1742156774641,18.64964886,127.27,127.25,1.5836]
[1742156775034,24.93564886,127.27,127.25,1.5836]
[1742156775229,35.70960498,127.27,127.23,0.03]
[1742156776334,18.64964886,127.25,127.23,0.03]
[1742156776547,29.70792812,127.24,127.23,0.03]
[1742156777050,35.99522812,127.24,127.23,0.03]
[1742156778245,35.99522812,127.24,127.23,0.0001]
[1742156778828,77.09522812,127.24,127.23,0.0001]
[1742156779029,18.64964886,127.24,127.23,0.0001]
[1742156779337,24.93694886,127.24,127.23,0.0001]
[1742156780454,18.64964886,127.24,127.23,0.0001]
[1742156781454,24.93694886,127.24,127.23,0.0001]
[1742156781630,35.71090498,127.24,127.23,0.0001]
[1742156782064,35.99522812,127.24,127.23,0.0001]
[1742156791256,43.21522812,127.24,127.23,0.0001]
[1742156794172,25.86964886,127.24,127.23,0.0001]
[1742156794587,18.64964886,127.24,127.23,0.0001]
[1742156794769,13.5065,127.26,127.23,1.6111]
[1742156794954,18.64964886,127.25,127.23,1.6111]
[1742156795152,18.71264886,127.27,127.23,1.6111]
[1742156795375,6.3488,127.27,127.23,1.6111]
[1742156795577,17.12275612,127.27,127.23,1.6111]
[1742156795780,18.64964886,127.26,127.23,1.6111]
[1742156796078,24.93624886,127.26,127.23,1.6111]
[1742156796954,35.71020498,127.26,127.23,1.6111]
[1742156797779,10.77395612,127.25,127.23,1.6111]
[1742156798279,24.93694886,127.24,127.23,1.6111]
[1742156800864,18.64964886,127.24,127.23,1.6111]
[1742156801270,0.063,127.25,127.23,12.38505612]
[1742156802065,0.063,127.25,127.24,10.77395612]
[1742156802684,6.3498,127.25,127.23,1.6111]
[1742156802883,0.063,127.25,127.23,1.6111]
[1742156804179,0.063,127.25,127.24,10.77395612]
[1742156806476,0.063,127.25,127.23,12.38505612]
[1742156807568,0.063,127.25,127.23,1.6111]
[1742156808089,0.063,127.25,127.24,10.77395612]
[1742156809783,0.063,127.25,127.23,12.38505612]
[1742156810874,0.063,127.25,127.24,10.77395612]
[1742156814186,0.063,127.25,127.23,7.8989]
[1742156814385,0.063,127.25,127.23,1.6111]
[1742156814595,0.063,127.25,127.24,10.77395612]
[1742156817398,0.063,127.25,127.23,12.38505612]
[1742156817991,0.063,127.25,127.24,10.77395612]
[1742156820581,0.063,127.25,127.24,17.06125612]
[1742156823505,0.063,127.25,127.24,10.77395612]
[1742156823984,0.063,127.25,127.23,1.6111]
[1742156824307,7.283,127.25,127.23,0.0001]
[1742156825704,6.2873,127.24,127.23,0.0001]
[1742156826490,24.93694886,127.24,127.23,0.0001]
[1742156826701,0.063,127.25,127.23,10.77405612]
[1742156827296,0.063,127.25,127.24,10.77395612]
[1742156833394,0.063,127.25,127.23,10.77405612]
[1742156835811,0.063,127.25,127.23,0.0001]
[1742156835812,18.71264886,127.25,127.23,0.0001]
[1742156836003,25.86964886,127.24,127.23,0.0001]
[1742156836693,43.21522812,127.24,127.23,0.0001]
[1742156837109,49.35545406,127.24,127.23,0.0001]
[1742156839909,90.45545406,127.24,127.23,0.0001]
[1742156847317,20.0,127.22,127.21,0.0001]
[1742156847518,55.56383092,127.22,127.21,0.0001]
[1742156849115,61.85213092,127.22,127.21,0.0001]
[1742156849441,20.0,127.18,127.12,3.95964497]
[1742156849607,0.28432314,127.17,127.11,2.7905551]
[1742156849798,18.933972,127.12,127.11,2.7905551]
[1742156849999,0.14216157,127.14,127.11,2.7905551]
[1742156850199,0.28432314,127.14,127.12,1.6184]
[1742156850401,24.13418206,127.17,127.12,1.6184]
[1742156850649,18.933972,127.16,127.14,16.91418206]
[1742156850924,18.64964886,127.16,127.14,16.91418206]
[1742156851114,18.64964886,127.16,127.12,24.98538206]
[1742156851310,6.2917,127.15,127.12,8.0712]
[1742156851516,6.2917,127.15,127.12,24.98538206]
[1742156853011,6.2917,127.15,127.12,1.6184]
[1742156853212,24.94284886,127.12,127.11,2.7905551]
[1742156853430,32.16284886,127.12,127.11,2.2905551]
[1742156853631,49.36135406,127.12,127.11,2.2905551]
[1742156853933,49.36135406,127.12,127.11,5.51e-05]
[1742156854125,0.28432314,127.11,127.1,5.51e-05]
[1742156854313,18.933972,127.11,127.04,16.91418206]
[1742156854520,18.64964886,127.11,127.06,16.91418206]
[1742156854830,35.56383092,127.11,127.06,16.91418206]
[1742156855031,18.64964886,127.09,127.05,16.91418206]
[1742156855330,16.91418206,127.11,127.06,16.91418206]
[1742156855635,18.64964886,127.1,127.07,16.91418206]
[1742156857833,18.64964886,127.11,127.08,1.5682]
[1742156859034,24.94334886,127.11,127.08,1.5682]
[1742156859332,18.64964886,127.11,127.08,1.5682]
[1742156862552,18.64964886,127.11,127.08,18.48238206]
[1742156863627,18.64964886,127.11,127.08,24.77758206]
[1742156864031,6.43446157,127.14,127.09,16.91418206]
[1742156864231,18.64964886,127.15,127.11,16.91418206]
[1742156864720,18.64964886,127.15,127.1,16.91418206]
[1742156865725,24.94144886,127.15,127.1,16.91418206]
[1742156866155,24.94144886,127.15,127.09,6.2945]
[1742156866332,49.07563092,127.15,127.09,23.20868206]
[1742156866838,49.07563092,127.15,127.09,16.91418206]
[1742156867052,18.64964886,127.11,127.08,1.5682]
[1742156867546,18.64964886,127.12,127.08,1.5682]
[1742156867853,41.85723092,127.12,127.07,16.91418206]
[1742156869336,16.91418206,127.12,127.07,23.20988206]
[1742156869642,35.84815406,127.14,127.09,16.91418206]
[1742156869865,35.84815406,127.14,127.08,16.91418206]
[1742156870225,18.64964886,127.12,127.08,16.91418206]
[1742156870939,18.64964886,127.12,127.09,0.03]
[1742156871334,35.84815406,127.14,127.09,0.03]
[1742156873029,7.22,127.14,127.11,16.91418206]
[1742156873652,13.5122,127.14,127.1,16.91418206]
[1742156874042,13.5122,127.14,127.09,0.03]
[1742156874244,18.64964886,127.13,127.09,16.94418206]
[1742156874754,6.2932,127.12,127.09,16.94418206]
[1742156875457,24.94254886,127.13,127.09,16.94418206]
[1742156875937,18.64964886,127.13,127.1,16.91418206]
[1742156876136,7.22,127.14,127.1,16.91418206]
[1742156876925,7.22,127.14,127.1,23.20838206]
[1742156877830,7.22,127.14,127.11,16.91418206]
[1742156883952,7.22,127.14,127.11,23.20788206]
[1742156884150,7.22,127.14,127.12,16.91418206]
[1742156884451,18.71264886,127.16,127.13,16.91418206]
[1742156885135,25.00384886,127.16,127.13,16.91418206]
[1742156886234,25.00384886,127.16,127.12,16.91418206]
[1742156886836,18.71264886,127.16,127.13,16.91418206]
[1742156887054,25.00394886,127.16,127.13,16.91418206]
[1742156887243,25.00394886,127.16,127.12,16.91418206]
[1742156887559,18.71264886,127.16,127.12,16.91418206]
[1742156887856,18.71264886,127.16,127.13,16.91418206]
[1742156888433,25.00384886,127.16,127.13,16.91418206]
[1742156888871,18.71264886,127.16,127.13,16.91418206]
[1742156893260,0.063,127.16,127.15,16.91418206]
[1742156893667,0.063,127.16,127.14,16.91418206]
[1742156894253,0.063,127.16,127.15,16.91418206]
[1742156895275,0.063,127.16,127.14,10.82909491]
[1742156897469,0.063,127.16,127.15,10.82909491]
[1742156900576,10.89209491,127.16,127.1,1.6675]
[1742156900752,18.64964886,127.14,127.1,12.49659491]
[1742156901072,25.86964886,127.14,127.1,12.49659491]
[1742156901651,32.16234886,127.14,127.1,1.6675]
[1742156901853,32.16234886,127.14,127.1,0.03]
[1742156901854,42.99144377,127.14,127.1,0.03]
[1742156902359,32.16234886,127.14,127.1,0.03]
[1742156902952,32.16234886,127.14,127.1,10.85909491]
[1742156903274,25.86964886,127.14,127.11,10.82909491]
[1742156903460,7.22,127.14,127.11,10.82909491]
[1742156903660,10.82909491,127.12,127.1,0.03]
[1742156903867,18.64964886,127.13,127.1,0.03]
[1742156905675,7.22,127.14,127.1,10.85909491]
[1742156905870,7.22,127.14,127.12,10.82909491]
[1742156906250,7.22,127.14,127.11,10.82909491]
[1742156906642,13.5123,127.14,127.11,10.82909491]
[1742156906846,13.5123,127.14,127.1,10.85909491]
[1742156907048,13.5123,127.14,127.1,0.03]
[1742156907263,13.5123,127.14,127.1,16.96209325]
[1742156911167,18.64964886,127.13,127.1,0.03]
[1742156913082,24.94264886,127.13,127.1,0.03]
[1742156916588,24.94264886,127.13,127.1,16.96209325]
[1742156917887,24.94264886,127.13,127.1,0.03]
[1742156921659,24.94264886,127.13,127.1,16.96209325]
[1742156921958,57.60664211,127.13,127.1,0.03]
[1742156923168,24.94334886,127.11,127.1,0.03]
[1742156926711,6.2932,127.13,127.1,0.03]
[1742156926877,18.64964886,127.12,127.1,0.03]
[1742156927884,6.2937,127.11,127.1,0.03]
[1742156928694,24.94304886,127.12,127.1,0.03]
[1742156930007,0.063,127.14,127.1,10.86829595]
[1742156930311,0.063,127.14,127.12,10.83829595]
[1742156930676,0.063,127.14,127.13,10.83829595]
[1742156931392,0.063,127.14,127.1,6.316]
[1742156931595,0.063,127.14,127.13,10.83829595]
[1742156931789,0.063,127.14,127.12,10.83829595]
[1742156931989,0.063,127.14,127.1,0.03]
[1742156932191,29.55094481,127.14,127.1,0.03]
[1742156932895,0.063,127.12,127.1,0.03]
[1742156934399,18.71264886,127.12,127.1,0.03]
[1742156938005,25.00634886,127.12,127.1,0.03]
[1742156941904,0.063,127.12,127.1,0.03]
[1742156942083,0.063,127.12,127.11,10.83829595]
[1742156944910,0.063,127.12,127.11,18.65419595]
[1742156945209,0.063,127.12,127.11,12.36049595]
[1742156946308,0.063,127.12,127.11,18.65419595]
[1742156948307,0.063,127.12,127.11,18.93851909]
[1742156948507,0.063,127.14,127.13,20.0]
[1742156948692,0.063,127.14,127.13,30.83829595]
[1742156948894,0.063,127.14,127.13,20.0]
[1742156950910,0.063,127.14,127.13,26.2927]
[1742156951908,0.063,127.14,127.13,37.13099595]
[1742156953604,0.063,127.14,127.13,80.48417975]
[1742156953804,0.063,127.14,127.13,86.95697975]
[1742156956005,0.063,127.14,127.13,76.1186838]
[1742156956211,0.063,127.14,127.13,43.60379595]
[1742156959196,0.063,127.14,127.13,26.4728]
[1742156959498,0.063,127.14,127.13,30.83829595]
[1742156959713,0.063,127.14,127.13,10.83829595]
[1742156963518,0.063,127.14,127.13,17.13099595]
[1742156966314,0.063,127.14,127.13,60.48417975]
[1742156967721,0.063,127.14,127.13,60.76850289]
[1742156968016,0.063,127.16,127.13,475.45650289]
[1742156968222,0.063,127.16,127.15,17.12999595]
[1742156968431,0.063,127.16,127.15,18.70429595]
[1742156969307,0.063,127.16,127.15,18.98861909]
[1742156970922,14.0772,127.23,127.15,18.98861909]
[1742156971116,14.0772,127.23,127.2,10.83829595]
[1742156971517,6.288,127.23,127.2,10.83829595]
[1742156972521,32.15714886,127.24,127.2,10.83829595]
[1742156972724,32.15714886,127.24,127.21,10.83829595]
[1742156972915,24.93714886,127.24,127.21,10.83829595]
[1742156973414,24.93714886,127.24,127.2,10.83829595]
[1742156974226,6.2875,127.24,127.21,10.83829595]
[1742156979611,6.2875,127.24,127.2,10.83829595]
[1742156980232,6.2875,127.24,127.21,10.83829595]
[1742156980815,6.3505,127.24,127.21,10.83829595]
[1742156981924,0.063,127.24,127.22,10.83829595]
[1742156982133,0.063,127.24,127.23,10.83829595]
[1742156983228,0.063,127.24,127.22,10.83829595]
[1742156983423,7.22,127.23,127.18,80.8]
[1742156983612,7.22,127.23,127.19,10.83829595]
[1742156984638,6.2883,127.22,127.19,10.83829595]
[1742156987634,6.2883,127.22,127.18,10.83829595]
[1742156988018,32.84729595,127.22,127.17,10.83829595]
[1742156991641,6.2893,127.2,127.15,0.03]
[1742156991825,6.2893,127.2,127.16,10.83829595]
[1742156993050,6.2893,127.2,127.16,10.86829595]
[1742156999350,24.93814886,127.22,127.18,10.83829595]
[1742156999851,35.77644481,127.22,127.17,10.83829595]
[1742157000248,10.83829595,127.21,127.16,10.86829595]
[1742157001326,6.2893,127.2,127.16,0.03]
[1742157001857,34.37034886,127.22,127.17,10.83829595]
[1742157002150,6.2889,127.21,127.17,10.83829595]
[1742157002548,24.93814886,127.22,127.18,10.83829595]
[1742157002749,13.5079,127.23,127.19,10.83829595]
[1742157003061,32.22004886,127.24,127.2,10.83829595]
[1742157004227,6.3504,127.24,127.21,10.83829595]
[1742157004431,32.22004886,127.24,127.21,10.83829595]
[1742157005351,32.22004886,127.24,127.2,10.83829595]
[1742157007364,32.22004886,127.24,127.19,10.83829595]
[1742157008758,32.22004886,127.24,127.2,10.83829595]
[1742157009254,32.22004886,127.24,127.22,10.83829595]
[1742157009255,7.283,127.24,127.22,10.83829595]
[1742157009759,0.063,127.24,127.22,10.83829595]
[1742157010965,0.063,127.24,127.23,10.83829595]
[1742157011146,0.063,127.24,127.22,10.83829595]
[1742157012165,0.063,127.24,127.19,6.2898]
[1742157012470,0.063,127.24,127.22,10.83829595]
[1742157015377,0.063,127.24,127.21,10.83829595]
[1742157015748,0.063,127.24,127.22,10.83829595]
[1742157017368,0.063,127.24,127.23,10.83829595]
[1742157019060,0.063,127.24,127.23,17.12609595]
[1742157020448,0.063,127.24,127.23,10.83829595]
[1742157022869,0.063,127.24,127.23,17.12609595]
[1742157025355,0.063,127.24,127.23,10.83829595]
[1742157025974,0.063,127.24,127.23,17.12609595]
[1742157031773,0.063,127.24,127.23,17.41041909]
[1742157032356,0.063,127.25,127.24,0.28432314]
[1742157032678,0.063,127.25,127.24,11.12261909]
[1742157033188,0.063,127.25,127.24,366.47580289]
[1742157033390,0.063,127.25,127.24,372.76310289]
[1742157033980,0.063,127.25,127.24,329.40991909]
[1742157036384,0.063,127.25,127.24,17.40991909]
[1742157036762,0.063,127.25,127.24,21.44109772]
[1742157038574,0.063,127.25,127.24,102.24109772]
[1742157038775,0.063,127.27,127.24,161.31258152]
[1742157038976,0.063,127.27,127.26,54.47580289]
[1742157039279,0.063,127.27,127.26,56.08010289]
[1742157039486,0.063,127.28,127.27,11.12261909]
[1742157040171,0.063,127.29,127.27,99.38640628]
[1742157040470,0.063,127.29,127.28,11.12261909]
[1742157041285,0.063,127.29,127.28,17.40791909]
[1742157043402,0.063,127.29,127.28,10.83829595]
[1742157051506,0.063,127.29,127.25,80.8]
[1742157051695,0.063,127.29,127.27,10.83829595]
[1742157052511,0.063,127.29,127.28,10.83829595]
[1742157052710,0.063,127.29,127.27,10.83829595]
[1742157053201,0.063,127.29,127.26,10.83829595]
[1742157053385,0.063,127.29,127.25,10.83829595]
[1742157054003,6.3478,127.29,127.25,10.83829595]
[1742157054611,22.0599,127.29,127.25,10.83829595]
[1742157054989,32.89819595,127.29,127.24,10.83829595]
[1742157055188,18.64964886,127.28,127.24,10.83829595]
[1742157055402,29.48794481,127.28,127.23,10.86829595]
[1742157055603,10.83829595,127.27,127.23,0.03]
[1742157056007,18.43479595,127.25,127.23,0.03]
[1742157056190,13.4873,127.24,127.23,0.03]
[1742157067612,7.2,127.24,127.23,0.03]
[1742157067814,13.4863,127.26,127.23,10.86829595]
[1742157068013,6.2863,127.26,127.23,0.03]
[1742157068198,13.4863,127.26,127.23,0.03]
[1742157069827,6.2863,127.26,127.23,0.03]
[1742157070011,13.4863,127.26,127.23,0.03]
[1742157071521,6.348,127.29,127.23,0.03]
[1742157071710,7.2,127.28,127.26,10.83829595]
[1742157072104,0.063,127.29,127.27,10.83829595]
[1742157072522,0.063,127.29,127.28,10.83829595]
[1742157074326,0.063,127.29,127.26,10.83829595]
[1742157075245,6.3478,127.29,127.26,10.83829595]
[1742157076827,17.18609595,127.29,127.23,0.03]
[1742157077029,25.84964886,127.28,127.24,10.83829595]
[1742157077232,6.2858,127.27,127.24,10.83829595]
[1742157077420,17.12409595,127.27,127.23,0.03]
[1742157078929,29.48794481,127.26,127.23,0.03]
[1742157079129,10.83829595,127.25,127.23,0.03]
[1742157079432,6.2873,127.24,127.23,0.03]
[1742157083134,35.77524481,127.24,127.23,0.03]
[1742157083355,36.05956795,127.24,127.23,0.0001]
[1742157084921,35.77524481,127.24,127.23,0.0001]
[1742157085122,24.93694886,127.24,127.23,0.0001]
[1742157085326,35.77524481,127.24,127.23,0.0001]